fUST/lending_fUST_20250616
["ID","MTS","AMOUNT","RATE_DAILY","PERIOD"]
[366150558,1750088987674,-300.0,0.00018416,2]
[366150559,1750088987704,-1363.36873013,0.00018416,2]
[366150599,1750089025167,500.0,0.00024658,120]
[366150607,1750089031993,500.0,0.00024658,120]
[366150655,1750089032810,-300.0,0.00018415,2]
[366150656,1750089032820,-1200.0,0.00018415,2]
[366150657,1750089032830,-160.0,0.00018416,2]
[366150658,1750089032841,-19099.82408567,0.00018416,2]
[366150659,1750089032853,-2368.88960135,0.00018416,2]
[366150660,1750089032865,-27167.91758285,0.00018416,2]
[366150661,1750089032876,-1041.08120244,0.00018422,2]
[366150662,1750089032886,-250.88614462,0.00018748,2]
[366150663,1750089032896,-1529.47743693,0.00019078,2]
[366150664,1750089032906,-156.89515289,0.00019166,2]
[366150665,1750089032915,-1307.07,0.00019168,3]
[366150666,1750089032925,-653.53,0.00019168,3]
[366150667,1750089032934,-326.77,0.00019168,3]
[366150668,1750089032944,-163.38,0.00019168,3]
[366150669,1750089032953,-490.17,0.00019168,3]
[366150670,1750089032963,-247.79,0.00019168,3]
[366150671,1750089032972,-743.37,0.00019168,3]
[366150673,1750089032981,-500.0,0.00019173,2]
[366150674,1750089032991,-246.31278831,0.00019173,2]
[366150675,1750089033000,-502.06027721,0.00019173,2]
[366150676,1750089033010,-160.16332637,0.00019173,2]
[366150677,1750089033020,-500.0,0.00019173,2]
[366150678,1750089033030,-500.0,0.00019173,2]
[366150679,1750089033039,-500.0,0.00019173,2]
[366150680,1750089033050,-500.0,0.00019173,2]
[366150681,1750089033060,-500.0,0.00019173,2]
[366150682,1750089033070,-210.81088442,0.00019173,2]
[366150683,1750089033080,-376.62669077,0.00019173,2]
[366150684,1750089033089,-496.36594109,0.00019173,2]
[366150685,1750089033099,-505.162816,0.00019173,2]
[366150686,1750089033108,-501.26660304,0.00019173,2]
[366150687,1750089033118,-368.47301716,0.00019173,2]
[366150688,1750089033128,-312.91867462,0.00019173,2]
[366150689,1750089033138,-500.0,0.00019173,2]
[366150690,1750089033148,-500.0,0.00019173,2]
[366150691,1750089033158,-500.0,0.00019173,2]
[366150692,1750089033169,-500.0,0.00019173,2]
[366150693,1750089033179,-471.47148591,0.00019173,2]
[366150694,1750089033188,-151.84565196,0.00019173,2]
[366150695,1750089033198,-151.0,0.00019173,2]
[366150696,1750089033210,-500.0,0.00019173,2]
[366150697,1750089033219,-500.0,0.00019173,2]
[366150698,1750089033230,-151.0,0.00019173,2]
[366150699,1750089033239,-500.0,0.00019173,2]
[366150700,1750089033250,-390.0,0.00019178,2]
[366150701,1750089033260,-198.65551253,0.00019178,2]
[366150702,1750089033269,-460.0,0.00019178,2]
[366150703,1750089033279,-410.0,0.00019178,2]
[366150704,1750089033289,-403.79112383,0.00019178,2]
[366150705,1750089033298,-460.0,0.00019178,2]
[366150706,1750089033309,-460.0,0.00019178,2]
[366150707,1750089033319,-440.0,0.00019178,2]
[366150709,1750089033329,-460.0,0.00019178,2]
[366150711,1750089033338,-453.93555481,0.00019178,2]
[366150713,1750089033348,-402.84129249,0.00019178,2]
[366150714,1750089033357,-460.0,0.00019178,2]
[366150716,1750089033367,-440.0,0.00019178,2]
[366150718,1750089033377,-370.0,0.00019178,2]
[366150720,1750089033386,-433.34149985,0.00019178,2]
[366150721,1750089033396,-460.0,0.00019178,2]
[366150722,1750089033405,-460.0,0.00019178,2]
[366150723,1750089033415,-437.122033,0.00019178,2]
[366150725,1750089033424,-460.0,0.00019178,2]
[366150727,1750089033434,-460.0,0.00019178,2]
[366150728,1750089033444,-460.0,0.00019178,2]
[366150729,1750089033458,-460.0,0.00019178,2]
[366150730,1750089033468,-432.67735851,0.00019178,2]
[366150731,1750089033478,-429.69656759,0.00019178,2]
[366150732,1750089033488,-518.17282175,0.00019178,2]
[366150733,1750089033498,-460.0,0.00019178,2]
[366150734,1750089033507,-460.0,0.00019178,2]
[366150735,1750089033517,-460.0,0.00019178,2]
[366150736,1750089033526,-473.94866922,0.00019178,2]
[366150737,1750089033536,-410.0,0.00019178,2]
[366150738,1750089033546,-460.0,0.00019178,2]
[366150739,1750089033556,-460.0,0.00019178,2]
[366150740,1750089033566,-370.96237727,0.00019178,2]
[366150741,1750089033577,-460.0,0.00019178,2]
[366150742,1750089033587,-460.0,0.00019178,2]
[366150743,1750089033597,-460.0,0.00019178,2]
[366150744,1750089033607,-460.0,0.00019178,2]
[366150745,1750089033617,-161.39226553,0.00019178,2]
[366150746,1750089033627,-460.0,0.00019178,2]
[366150747,1750089033637,-460.0,0.00019178,2]
[366150748,1750089033647,-460.15012927,0.00019178,2]
[366150749,1750089033656,-460.0,0.00019178,2]
[366150750,1750089033667,-460.0,0.00019178,2]
[366150751,1750089033677,-460.0,0.00019178,2]
[366150752,1750089033686,-430.0,0.00019178,2]
[366150753,1750089033695,-460.0,0.00019178,2]
[366150754,1750089033705,-460.0,0.00019178,2]
[366150755,1750089033715,-460.0,0.00019178,2]
[366150756,1750089033729,-430.0,0.00019178,2]
[366150757,1750089033739,-460.0,0.00019178,2]
[366150758,1750089033749,-460.0,0.00019178,2]
[366150759,1750089033759,-430.0,0.00019178,2]
[366150760,1750089033771,-460.0,0.00019178,2]
[366150761,1750089033781,-460.0,0.00019178,2]
[366150762,1750089033792,-420.09938566,0.00019178,2]
[366150763,1750089033807,-420.0,0.00019178,2]
[366150764,1750089033818,-460.0,0.00019178,2]
[366150765,1750089033828,-430.73279694,0.00019178,2]
[366150766,1750089033838,-460.0,0.00019178,2]
[366150767,1750089033848,-205.11965153,0.00019178,2]
[366150768,1750089033857,-440.0,0.00019178,2]
[366150769,1750089033867,-400.0,0.00019178,2]
[366150770,1750089033879,-500.0,0.00019178,2]
[366150771,1750089033889,-500.0,0.00019178,2]
[366150772,1750089033900,-460.0,0.00019178,2]
[366150773,1750089033909,-460.0,0.00019178,2]
[366150774,1750089033920,-430.0,0.00019178,2]
[366150775,1750089033930,-433.88538816,0.00019178,2]
[366150776,1750089033940,-430.0,0.00019178,2]
[366150777,1750089033949,-440.0,0.00019178,2]
[366150778,1750089033959,-336.90534374,0.00019178,2]
[366150779,1750089033969,-440.0,0.00019178,2]
[366150780,1750089033979,-430.0,0.00019178,2]
[366150781,1750089033989,-440.0,0.00019178,2]
[366150782,1750089033999,-460.0,0.00019178,2]
[366150783,1750089034009,-460.0,0.00019178,2]
[366150784,1750089034019,-431.63740646,0.00019178,2]
[366150785,1750089034031,-386.05329912,0.00019178,2]
[366150786,1750089034041,-460.0,0.00019178,2]
[366150787,1750089034051,-440.0,0.00019178,2]
[366150788,1750089034061,-460.0,0.00019178,2]
[366150789,1750089034071,-430.0,0.00019178,2]
[366150790,1750089034082,-460.0,0.00019178,2]
[366150791,1750089034092,-423.22277393,0.00019178,2]
[366150792,1750089034102,-460.0,0.00019178,2]
[366150793,1750089034112,-460.0,0.00019178,2]
[366150794,1750089034123,-460.0,0.00019178,2]
[366150795,1750089034133,-430.0,0.00019178,2]
[366150796,1750089034143,-194.16039681,0.00019178,2]
[366150797,1750089034160,-265.83960319,0.00019178,2]
[366150798,1750089034172,-558.33225897,0.00019178,2]
[366150799,1750089034183,-460.0,0.00019178,2]
[366150800,1750089034194,-430.0,0.00019178,2]
[366150801,1750089034204,-500.0,0.00019178,2]
[366150802,1750089034215,-440.0,0.00019178,2]
[366150803,1750089034226,-460.0,0.00019178,2]
[366150804,1750089034236,-390.0,0.00019178,2]
[366150805,1750089034247,-432.40357476,0.00019178,2]
[366150806,1750089034257,-460.0,0.00019178,2]
[366150807,1750089034269,-410.0,0.00019178,2]
[366150808,1750089034280,-460.0,0.00019178,2]
[366150809,1750089034292,-475.41642264,0.00019178,2]
[366150810,1750089034303,-460.0,0.00019178,2]
[366150811,1750089034313,-460.0,0.00019178,2]
[366150812,1750089034324,-460.0,0.00019178,2]
[366150813,1750089034334,-472.37926347,0.00019178,2]
[366150814,1750089034344,-460.0,0.00019178,2]
[366150815,1750089034355,-460.0,0.00019178,2]
[366150816,1750089034365,-460.0,0.00019178,2]
[366150817,1750089034375,-378.78471458,0.00019178,2]
[366150818,1750089034385,-460.0,0.00019178,2]
[366150819,1750089034395,-460.0,0.00019178,2]
[366150820,1750089034405,-460.0,0.00019178,2]
[366150821,1750089034415,-453.19006864,0.00019178,2]
[366150822,1750089034428,-460.0,0.00019178,2]
[366150823,1750089034438,-460.0,0.00019178,2]
[366150824,1750089034449,-500.0,0.00019178,2]
[366150825,1750089034460,-500.0,0.00019178,2]
[366150826,1750089034470,-500.0,0.00019178,2]
[366150827,1750089034480,-460.0,0.00019178,2]
[366150828,1750089034491,-460.0,0.00019178,2]
[366150829,1750089034500,-460.0,0.00019178,2]
[366150830,1750089034510,-154.84731397,0.00019178,2]
[366150831,1750089034520,-151.0,0.00019178,2]
[366150832,1750089034530,-460.0,0.00019178,2]
[366150833,1750089034539,-416.09843818,0.00019178,2]
[366150834,1750089034549,-460.0,0.00019178,2]
[366150835,1750089034560,-151.0,0.00019178,2]
[366150836,1750089034570,-153.51658329,0.00019178,2]
[366150837,1750089034579,-440.0,0.00019178,2]
[366150838,1750089034589,-151.0,0.00019178,2]
[366150839,1750089034599,-460.0,0.00019178,2]
[366150840,1750089034608,-460.0,0.00019178,2]
[366150841,1750089034618,-462.6264709,0.00019178,2]
[366150842,1750089034628,-460.0,0.00019178,2]
[366150843,1750089034637,-460.0,0.00019178,2]
[366150844,1750089034646,-460.0,0.00019178,2]
[366150845,1750089034657,-417.17054922,0.00019178,2]
[366150846,1750089034669,-460.0,0.00019178,2]
[366150847,1750089034678,-460.0,0.00019178,2]
[366150848,1750089034688,-455.94,0.00019178,2]
[366150849,1750089034698,-421.3274055,0.00019178,2]
[366150850,1750089034708,-460.0,0.00019178,2]
[366150852,1750089034720,-237.78849566,0.00019178,2]
[366150853,1750089034732,-460.0,0.00019178,2]
[366150854,1750089034743,-460.0,0.00019178,2]
[366150855,1750089034752,-460.0,0.00019178,2]
[366150856,1750089034763,-460.0,0.00019178,2]
[366150857,1750089034773,-460.0,0.00019178,2]
[366150858,1750089034782,-460.0,0.00019178,2]
[366150859,1750089034792,-460.0,0.00019178,2]
[366150860,1750089034802,-407.81738384,0.00019178,2]
[366150861,1750089034812,-460.0,0.00019178,2]
[366150862,1750089034822,-460.0,0.00019178,2]
[366150863,1750089034832,-460.0,0.00019178,2]
[366150864,1750089034841,-460.0,0.00019178,2]
[366150865,1750089034851,-420.0,0.00019178,2]
[366150866,1750089034861,-460.0,0.00019178,2]
[366150867,1750089034872,-460.0,0.00019178,2]
[366150868,1750089034882,-460.0,0.00019178,2]
[366150869,1750089034892,-460.0,0.00019178,2]
[366150870,1750089034903,-411.48554743,0.00019178,2]
[366150871,1750089034913,-411.16221496,0.00019178,2]
[366150872,1750089034925,-326.06371609,0.00019178,2]
[366150873,1750089034935,-174.80997471,0.00019178,2]
[366150874,1750089034950,-285.19002529,0.00019178,2]
[366150875,1750089034960,-460.0,0.00019178,2]
[366150876,1750089034970,-363.9517617,0.00019178,2]
[366150881,1750089039055,-96.0482383,0.00019178,2]
[366150882,1750089039065,-460.0,0.00019178,2]
[366150883,1750089039075,-460.0,0.00019178,2]
[366150884,1750089039085,-15.33422061,0.00019178,2]
[366150886,1750089039266,-444.66577939,0.00019178,2]
[366150888,1750089039279,-460.0,0.00019178,2]
[366150889,1750089039289,-460.0,0.00019178,2]
[366150890,1750089039299,-460.94561013,0.00019178,2]
[366150891,1750089039309,-460.0,0.00019178,2]
[366150892,1750089039320,-460.0,0.00019178,2]
[366150893,1750089039330,-460.0,0.00019178,2]
[366150894,1750089039339,-460.0,0.00019178,2]
[366150895,1750089039349,-440.0,0.00019178,2]
[366150896,1750089039361,-460.0,0.00019178,2]
[366150897,1750089039372,-460.0,0.00019178,2]
[366150900,1750089039395,-460.0,0.00019178,2]
[366150903,1750089039406,-460.0,0.00019178,2]
[366150905,1750089039417,-430.0,0.00019178,2]
[366150907,1750089039429,-460.0,0.00019178,2]
[366150908,1750089039439,-460.0,0.00019178,2]
[366150909,1750089039449,-1881.63,0.00019178,2]
[366150910,1750089039459,-460.0,0.00019178,2]
[366150911,1750089039469,-460.0,0.00019178,2]
[366150912,1750089039480,-460.0,0.00019178,2]
[366150913,1750089039490,-460.0,0.00019178,2]
[366150914,1750089039500,-460.0,0.00019178,2]
[366150915,1750089039512,-460.0,0.00019178,2]
[366150916,1750089039523,-460.0,0.00019178,2]
[366150917,1750089039534,-440.0,0.00019178,2]
[366150918,1750089039544,-440.0,0.00019178,2]
[366150919,1750089039554,-530.63,0.00019178,2]
[366150920,1750089039565,-460.0,0.00019178,2]
[366150921,1750089039576,-412.29442468,0.00019178,2]
[366150922,1750089039586,-460.0,0.00019178,2]
[366150923,1750089039597,-340.0,0.00019178,2]
[366150924,1750089039608,-460.0,0.00019178,2]
[366150925,1750089039619,-440.0,0.00019178,2]
[366150926,1750089039630,-460.0,0.00019178,2]
[366150927,1750089039640,-460.0,0.00019178,2]
[366150929,1750089039652,-525.3,0.00019178,2]
[366150930,1750089039662,-2532.74,0.00019178,2]
[366150931,1750089039675,-475.3581481,0.00019178,2]
[366150932,1750089039687,-1369.72,0.00019178,2]
[366150933,1750089039698,-460.0,0.00019178,2]
[366150934,1750089039711,-460.0,0.00019178,2]
[366150935,1750089039726,-460.0,0.00019178,2]
[366150936,1750089039737,-440.0,0.00019178,2]
[366150937,1750089039748,-460.0,0.00019178,2]
[366150938,1750089039760,-460.0,0.00019178,2]
[366150939,1750089039772,-460.0,0.00019178,2]
[366150940,1750089039784,-460.0,0.00019178,2]
[366150941,1750089039800,-1914.59,0.00019178,2]
[366150942,1750089039813,-460.0,0.00019178,2]
[366150943,1750089039824,-460.0,0.00019178,2]
[366150944,1750089039836,-903.02,0.00019178,2]
[366150945,1750089039847,-460.0,0.00019178,2]
[366150946,1750089039858,-460.0,0.00019178,2]
[366150947,1750089039868,-430.0,0.00019178,2]
[366150948,1750089039878,-460.0,0.00019178,2]
[366150949,1750089039890,-460.0,0.00019178,2]
[366150950,1750089039900,-531.98,0.00019178,2]
[366150951,1750089039911,-460.0,0.00019178,2]
[366150952,1750089039925,-901.41,0.00019178,2]
[366150953,1750089039935,-310.0,0.00019178,2]
[366150954,1750089039946,-410.0,0.00019178,2]
[366150955,1750089039957,-195.83381847,0.00019178,2]
[366150956,1750089039968,-460.0,0.00019178,2]
[366150957,1750089039979,-795.13,0.00019178,2]
[366150958,1750089039992,-460.0,0.00019178,2]
[366150959,1750089040004,-460.0,0.00019178,2]
[366150960,1750089040021,-829.83,0.00019178,2]
[366150961,1750089040033,-460.0,0.00019178,2]
[366150962,1750089040044,-440.0,0.00019178,2]
[366150963,1750089040055,-460.0,0.00019178,2]
[366150964,1750089040067,-460.0,0.00019178,2]
[366150965,1750089040078,-460.0,0.00019178,2]
[366150966,1750089040088,-345.68389192,0.00019178,2]
[366150967,1750089040100,-460.0,0.00019178,2]
[366150968,1750089040112,-460.0,0.00019178,2]
[366150969,1750089040122,-235.45551907,0.00019178,2]
[366150970,1750089040133,-460.0,0.00019178,2]
[366150971,1750089040144,-460.0,0.00019178,2]
[366150972,1750089040155,-430.0,0.00019178,2]
[366150973,1750089040165,-460.0,0.00019178,2]
[366150974,1750089040180,-460.0,0.00019178,2]
[366150975,1750089040190,-460.0,0.00019178,2]
[366150977,1750089040201,-460.0,0.00019178,2]
[366150979,1750089040213,-440.0,0.00019178,2]
[366150980,1750089040223,-460.0,0.00019178,2]
[366150981,1750089040235,-476.38897664,0.00019178,2]
[366150982,1750089040246,-400.0,0.00019178,2]
[366150983,1750089040256,-460.0,0.00019178,2]
[366150984,1750089040268,-460.0,0.00019178,2]
[366150985,1750089040279,-460.0,0.00019178,2]
[366150986,1750089040289,-460.0,0.00019178,2]
[366150987,1750089040300,-1551.04,0.00019178,2]
[366150988,1750089040311,-430.0,0.00019178,2]
[366150989,1750089040322,-430.0,0.00019178,2]
[366150990,1750089040332,-1499.04,0.00019178,2]
[366150991,1750089040344,-460.0,0.00019178,2]
[366150992,1750089040354,-430.0,0.00019178,2]
[366150993,1750089040366,-597.29,0.00019178,2]
[366150995,1750089040377,-430.0,0.00019178,2]
[366150996,1750089040387,-460.0,0.00019178,2]
[366150997,1750089040399,-566.58005501,0.00019178,2]
[366150998,1750089040410,-925.29,0.00019178,2]
[366150999,1750089040422,-431.0404549,0.00019178,2]
[366151000,1750089040434,-430.0,0.00019178,2]
[366151001,1750089040445,-440.0,0.00019178,2]
[366151002,1750089040456,-460.0,0.00019178,2]
[366151003,1750089040467,-440.0,0.00019178,2]
[366151004,1750089040478,-460.0,0.00019178,2]
[366151005,1750089040488,-460.0,0.00019178,2]
[366151006,1750089040499,-460.0,0.00019178,2]
[366151007,1750089040509,-440.0,0.00019178,2]
[366151022,1750089040666,-460.0,0.00019178,2]
[366151024,1750089040679,-460.0,0.00019178,2]
[366151026,1750089040689,-520.15,0.00019178,2]
[366151028,1750089040699,-440.0,0.00019178,2]
[366151030,1750089040709,-460.0,0.00019178,2]
[366151032,1750089040720,-460.0,0.00019178,2]
[366151034,1750089040734,-460.0,0.00019178,2]
[366151036,1750089040744,-430.0,0.00019178,2]
[366151038,1750089040754,-460.0,0.00019178,2]
[366151039,1750089040766,-460.0,0.00019178,2]
[366151040,1750089040776,-460.0,0.00019178,2]
[366151041,1750089040786,-460.0,0.00019178,2]
[366151042,1750089040796,-324.0166995,0.00019178,2]
[366151043,1750089040809,-430.0,0.00019178,2]
[366151044,1750089040821,-447.73729379,0.00019178,2]
[366151045,1750089040831,-441.96012296,0.00019178,2]
[366151047,1750089040841,-460.0,0.00019178,2]
[366151048,1750089040851,-460.0,0.00019178,2]
[366151049,1750089040861,-460.0,0.00019178,2]
[366151050,1750089040871,-460.0,0.00019178,2]
[366151051,1750089040881,-440.0,0.00019178,2]
[366151052,1750089040891,-460.0,0.00019178,2]
[366151053,1750089040902,-460.0,0.00019178,2]
[366151054,1750089040913,-440.0,0.00019178,2]
[366151055,1750089040923,-460.0,0.00019178,2]
[366151056,1750089040932,-460.0,0.00019178,2]
[366151057,1750089040943,-3579.55,0.00019178,2]
[366151058,1750089040953,-360.0,0.00019178,2]
[366151059,1750089040967,-460.0,0.00019178,2]
[366151060,1750089040979,-500.0,0.00019178,2]
[366151061,1750089040990,-430.0,0.00019178,2]
[366151062,1750089041000,-460.0,0.00019178,2]
[366151063,1750089041011,-430.0,0.00019178,2]
[366151064,1750089041022,-1086.54,0.00019178,2]
[366151065,1750089041033,-460.0,0.00019178,2]
[366151066,1750089041042,-460.0,0.00019178,2]
[366151067,1750089041052,-150.70217513,0.00019178,2]
[366151068,1750089041063,-414.81838807,0.00019178,2]
[366151069,1750089041072,-460.0,0.00019178,2]
[366151070,1750089041083,-1778.22,0.00019178,2]
[366151071,1750089041093,-460.0,0.00019178,2]
[366151072,1750089041103,-460.07958797,0.00019178,2]
[366151073,1750089041113,-587.8728,0.00019178,2]
[366151074,1750089041124,-460.0,0.00019178,2]
[366151075,1750089041134,-460.0,0.00019178,2]
[366151076,1750089041144,-460.0,0.00019178,2]
[366151077,1750089041154,-1733.7,0.00019178,2]
[366151078,1750089041163,-339.37128976,0.00019178,2]
[366151080,1750089041174,-460.0,0.00019178,2]
[366151082,1750089041184,-441.35140126,0.00019178,2]
[366151084,1750089041193,-460.0,0.00019178,2]
[366151086,1750089041204,-460.0,0.00019178,2]
[366151088,1750089041214,-460.0,0.00019178,2]
[366151090,1750089041225,-2444.59,0.00019178,2]
[366151092,1750089041235,-460.0,0.00019178,2]
[366151094,1750089041245,-460.0,0.00019178,2]
[366151096,1750089041256,-460.0,0.00019178,2]
[366151098,1750089041266,-460.0,0.00019178,2]
[366151100,1750089041277,-460.0,0.00019178,2]
[366151102,1750089041287,-460.0,0.00019178,2]
[366151104,1750089041298,-460.0,0.00019178,2]
[366151106,1750089041307,-460.0,0.00019178,2]
[366151108,1750089041318,-500.0,0.00019178,2]
[366151110,1750089041329,-181.717641,0.00019178,2]
[366151112,1750089041344,-500.0,0.000192,2]
[366151114,1750089041354,-500.0,0.000192,2]
[366151117,1750089041364,-500.0,0.000192,2]
[366151120,1750089041375,-500.0,0.00019205,2]
[366151122,1750089041385,-151.0,0.00019205,2]
[366151125,1750089041395,-254.14725446,0.00019205,2]
[366151127,1750089041405,-151.0,0.00019205,2]
[366151129,1750089041417,-500.0,0.00019228,2]
[366151131,1750089041428,-500.0,0.00019228,2]
[366151133,1750089041439,-500.0,0.00019228,2]
[366151135,1750089041449,-500.0,0.00019233,2]
[366151138,1750089041460,-151.0,0.00019233,2]
[366151140,1750089041470,-232.37948495,0.00019233,2]
[366151142,1750089041480,-500.0,0.00019255,2]
[366151144,1750089041490,-350.38578769,0.00019255,2]
[366151146,1750089041500,-500.0,0.00019255,2]
[366151148,1750089041510,-205.20717995,0.00019257,2]
[366151150,1750089041520,-500.0,0.0001926,2]
[366151153,1750089041530,-199.88530387,0.0001926,2]
[366151156,1750089041554,-498.62433856,0.00019261,2]
[366151158,1750089041565,-500.0,0.00019283,2]
[366151160,1750089041575,-500.0,0.00019283,2]
[366151162,1750089041586,-1529.47743691,0.00019284,2]
[366151164,1750089041597,-500.0,0.00019288,2]
[366151166,1750089041607,-500.0,0.0001931,2]
[366151168,1750089041618,-500.0,0.0001931,2]
[366151170,1750089041628,-500.0,0.00019315,2]
[366151172,1750089041639,-500.0,0.00019337,2]
[366151174,1750089041650,-500.0,0.00019337,2]
[366151176,1750089041664,-500.0,0.00019342,2]
[366151178,1750089041677,-500.0,0.00019365,2]
[366151180,1750089041687,-500.0,0.00019365,2]
[366151182,1750089041698,-500.0,0.0001937,2]
[366151184,1750089041709,-500.0,0.00019392,2]
[366151186,1750089041721,-332.23343728,0.00019392,2]
[366151188,1750089041733,-500.0,0.00019397,2]
[366151191,1750089041744,-305.77396368,0.00019411,2]
[366151193,1750089041754,-500.0,0.0001942,2]
[366151195,1750089041765,-500.0,0.00019425,2]
[366151197,1750089041777,-500.0,0.00019447,2]
[366151199,1750089041787,-384.40007013,0.00019451,4]
[366151201,1750089041797,-500.0,0.00019451,4]
[366151203,1750089041808,-500.0,0.00019452,2]
[366151205,1750089041819,-460.0,0.00019452,4]
[366151207,1750089041829,-460.0,0.00019452,4]
[366151209,1750089041840,-460.0,0.00019452,4]
[366151211,1750089041850,-460.0,0.00019452,4]
[366151213,1750089041860,-460.0,0.00019452,4]
[366151215,1750089041870,-420.0,0.00019452,4]
[366151217,1750089041881,-424.97421766,0.00019452,4]
[366151219,1750089041891,-363.91614142,0.00019452,4]
[366151221,1750089041901,-460.0,0.00019452,4]
[366151223,1750089041911,-460.0,0.00019452,4]
[366151225,1750089041923,-460.0,0.00019452,4]
[366151227,1750089041933,-460.0,0.00019452,4]
[366151229,1750089041946,-460.0,0.00019452,4]
[366151231,1750089041956,-460.0,0.00019452,4]
[366151233,1750089041965,-460.0,0.00019452,4]
[366151235,1750089041975,-342.60115297,0.00019452,4]
[366151236,1750089041985,-460.0,0.00019452,4]
[366151238,1750089041995,-347.14708218,0.00019452,4]
[366151241,1750089042005,-460.0,0.00019452,4]
[366151243,1750089042016,-420.0,0.00019452,4]
[366151245,1750089042026,-430.0,0.00019452,4]
[366151247,1750089042036,-460.0,0.00019452,4]
[366151249,1750089042046,-297.7766824,0.00019452,4]
[366151251,1750089042056,-214.82255203,0.00019452,4]
[366151253,1750089042067,-460.0,0.00019452,4]
[366151255,1750089042076,-227.16,0.00019452,4]
[366151257,1750089042086,-150.41472825,0.00019452,4]
[366151259,1750089042096,-460.0,0.00019452,4]
[366151261,1750089042107,-460.0,0.00019452,4]
[366151263,1750089042118,-460.0,0.00019452,4]
[366151265,1750089042127,-460.0,0.00019452,4]
[366151267,1750089042138,-460.0,0.00019452,4]
[366151269,1750089042148,-460.0,0.00019452,4]
[366151271,1750089042158,-460.0,0.00019452,4]
[366151273,1750089042168,-245.7481722,0.00019452,4]
[366151275,1750089042182,-460.0,0.00019452,4]
[366151277,1750089042193,-460.0,0.00019452,4]
[366151279,1750089042202,-460.0,0.00019452,4]
[366151281,1750089042213,-460.0,0.00019452,4]
[366151283,1750089042223,-460.0,0.00019452,4]
[366151285,1750089042234,-460.0,0.00019452,4]
[366151288,1750089042245,-460.0,0.00019452,2]
[366151290,1750089042255,-460.0,0.00019452,4]
[366151292,1750089042265,-460.0,0.00019452,4]
[366151294,1750089042275,-460.0,0.00019452,4]
[366151296,1750089042285,-460.0,0.00019452,4]
[366151298,1750089042295,-410.0,0.00019452,4]
[366151300,1750089042305,-460.0,0.00019452,4]
[366151302,1750089042315,-460.0,0.00019452,4]
[366151304,1750089042328,-440.0,0.00019452,4]
[366151306,1750089042339,-460.0,0.00019452,4]
[366151308,1750089042349,-460.0,0.00019452,4]
[366151310,1750089042359,-460.0,0.00019452,4]
[366151312,1750089042369,-460.73377086,0.00019452,4]
[366151314,1750089042380,-460.0,0.00019452,4]
[366151315,1750089042390,-460.0,0.00019452,4]
[366151318,1750089042400,-460.0,0.00019452,4]
[366151319,1750089042411,-460.0,0.00019452,4]
[366151321,1750089042421,-460.0,0.00019452,4]
[366151323,1750089042433,-460.0,0.00019452,4]
[366151325,1750089042443,-460.0,0.00019452,4]
[366151327,1750089042454,-460.0,0.00019452,4]